lending/lending_fUSD_20250131
["ID","MTS","AMOUNT","RATE_DAILY","PERIOD"]
[351132608,1738347038926,-500.0,0.00017122,2]
[351132609,1738347038936,-535.74705755,0.00017122,2]
[351132610,1738347038946,-500.0,0.00017122,2]
[351132611,1738347038955,-500.0,0.00017122,2]
[351132612,1738347038966,-500.0,0.00017122,2]
[351132613,1738347038975,-500.0,0.00017122,2]
[351132614,1738347038984,-500.0,0.00017122,2]
[351132615,1738347038994,-511.11497209,0.00017122,2]
[351132616,1738347039003,-390.93753286,0.00017122,2]
[351132617,1738347039012,-500.0,0.00017122,2]
[351132618,1738347039021,-500.0,0.00017122,2]
[351132619,1738347039030,-500.0,0.00017122,2]
[351132620,1738347039040,-500.0,0.00017122,2]
[351132621,1738347039049,-563.48136173,0.00017122,2]
[351132622,1738347039059,-500.0,0.00017122,2]
[351132623,1738347039069,-500.0,0.00017122,2]
[351132624,1738347039079,-500.0,0.00017122,2]
[351132625,1738347039088,-500.0,0.00017122,2]
[351132626,1738347039098,-500.0,0.00017122,2]
[351132627,1738347039111,-500.0,0.00017122,2]
[351132628,1738347039121,-500.0,0.00017122,2]
[351132629,1738347039131,-500.0,0.00017122,2]
[351132630,1738347039142,-514.13877028,0.00017122,2]
[351132631,1738347039152,-500.0,0.00017122,2]
[351132632,1738347039162,-500.0,0.00017122,2]
[351132633,1738347039172,-500.0,0.00017122,2]
[351132637,1738347039344,-403.57471791,0.00017122,2]
[351132639,1738347039360,-500.0,0.00017122,2]
[351132642,1738347039370,-500.0,0.00017122,2]
[351132644,1738347039381,-500.0,0.00017122,2]
[351132646,1738347039391,-386.77055246,0.00017122,2]
[351132647,1738347039400,-500.0,0.00017122,2]
[351132648,1738347039410,-500.0,0.00017122,2]
[351132649,1738347039419,-500.0,0.00017122,2]
[351132650,1738347039429,-500.0,0.00017122,2]
[351132651,1738347039439,-500.0,0.00017122,2]
[351132652,1738347039448,-500.0,0.00017122,2]
[351132653,1738347039458,-500.0,0.00017122,2]
[351132654,1738347039467,-500.0,0.00017122,2]
[351132655,1738347039477,-500.0,0.00017122,2]
[351132656,1738347039487,-500.0,0.00017122,2]
[351132657,1738347039497,-500.0,0.00017122,2]
[351132658,1738347039507,-500.0,0.00017122,2]
[351132659,1738347039517,-500.0,0.00017122,2]
[351132660,1738347039526,-500.0,0.00017122,2]
[351132661,1738347039536,-500.0,0.00017122,2]
[351132662,1738347039547,-500.0,0.00017122,2]
[351132663,1738347039557,-500.0,0.00017122,2]
[351132664,1738347039566,-500.0,0.00017122,2]
[351132665,1738347039576,-528.49700808,0.00017122,2]
[351132666,1738347039586,-500.0,0.00017122,2]
[351132667,1738347039595,-500.0,0.00017122,2]
[351132668,1738347039605,-500.0,0.00017122,2]
[351132669,1738347039615,-500.0,0.00017122,2]
[351132670,1738347039624,-500.0,0.00017122,2]
[351132671,1738347039633,-500.0,0.00017122,2]
[351132672,1738347039643,-500.0,0.00017122,2]
[351132673,1738347039652,-500.0,0.00017122,2]
[351132674,1738347039662,-500.0,0.00017122,2]
[351132675,1738347039672,-500.0,0.00017122,2]
[351132676,1738347039681,-500.0,0.00017122,2]
[351132677,1738347039690,-500.0,0.00017122,2]
[351132678,1738347039699,-500.0,0.00017122,2]
[351132679,1738347039709,-500.0,0.00017122,2]
[351132680,1738347039718,-500.0,0.00017122,2]
[351132681,1738347039728,-500.0,0.00017122,2]
[351132682,1738347039737,-500.0,0.00017122,2]
[351132683,1738347039746,-500.0,0.00017122,2]
[351132684,1738347039755,-558.31910282,0.00017122,2]
[351132685,1738347039764,-500.0,0.00017122,2]
[351132686,1738347039773,-500.0,0.00017122,2]
[351132687,1738347039782,-500.0,0.00017122,2]
[351132688,1738347039796,-576.69,0.00017122,2]
[351132689,1738347039806,-500.0,0.00017122,2]
[351132690,1738347039816,-943.27,0.00017122,2]
[351132691,1738347039826,-500.0,0.00017122,2]
[351132692,1738347039835,-500.0,0.00017122,2]
[351132693,1738347039845,-713.29,0.00017122,2]
[351132694,1738347039856,-500.0,0.00017122,2]
[351132695,1738347039865,-500.0,0.00017122,2]
[351132696,1738347039875,-500.0,0.00017122,2]
[351132697,1738347039885,-500.8926262,0.00017122,2]
[351132698,1738347039894,-500.0,0.00017122,2]
[351132699,1738347039904,-500.0,0.00017122,2]
[351132700,1738347039914,-500.0,0.00017122,2]
[351132701,1738347039923,-500.0,0.00017122,2]
[351132702,1738347039933,-500.0,0.00017122,2]
[351132703,1738347039943,-500.0,0.00017122,2]
[351132704,1738347039953,-500.0,0.00017122,2]
[351132705,1738347039962,-500.0,0.00017122,2]
[351132706,1738347039972,-557.95,0.00017122,2]
[351132707,1738347039981,-500.0,0.00017122,2]
[351132708,1738347039991,-500.0,0.00017122,2]
[351132709,1738347040000,-500.0,0.00017122,2]
[351132710,1738347040010,-500.0,0.00017122,2]
[351132711,1738347040021,-500.0,0.00017122,2]
[351132712,1738347040031,-500.0,0.00017122,2]
[351132713,1738347040040,-500.0,0.00017122,2]
[351132714,1738347040050,-153.597844,0.00017122,2]
[351132715,1738347040060,-500.0,0.00017122,2]
[351132716,1738347040071,-500.0,0.00017122,2]
[351132717,1738347040080,-500.0,0.00017122,2]
[351132718,1738347040090,-1213.83,0.00017122,2]
[351132719,1738347040103,-268.21210132,0.00017122,2]
[351132720,1738347040112,-500.0,0.00017122,2]
[351132721,1738347040122,-500.0,0.00017122,2]
[351132722,1738347040132,-1121.05,0.00017122,2]
[351132723,1738347040142,-152.283895,0.00017122,2]
[351132724,1738347040152,-500.0,0.00017122,2]
[351132725,1738347040162,-1093.93,0.00017122,2]
[351132726,1738347040172,-500.0,0.00017122,2]
[351132727,1738347040182,-559.09,0.00017122,2]
[351132728,1738347040192,-500.0,0.00017122,2]
[351132729,1738347040202,-500.0,0.00017122,2]
[351132730,1738347040212,-528.45,0.00017122,2]
[351132731,1738347040222,-500.0,0.00017122,2]
[351132732,1738347040231,-583.43,0.00017122,2]
[351132733,1738347040241,-500.0,0.00017122,2]
[351132734,1738347040250,-500.0,0.00017122,2]
[351132735,1738347040260,-500.0,0.00017122,2]
[351132736,1738347040270,-500.0,0.00017122,2]
[351132737,1738347040279,-500.0,0.00017122,2]
[351132738,1738347040289,-500.0,0.00017122,2]
[351132739,1738347040299,-500.0,0.00017122,2]
[351132740,1738347040308,-500.0,0.00017122,2]
[351132741,1738347040318,-500.0,0.00017122,2]
[351132742,1738347040327,-500.0,0.00017122,2]
[351132743,1738347040336,-500.0,0.00017122,2]
[351132744,1738347040346,-704.25,0.00017122,2]
[351132745,1738347040355,-637.67,0.00017122,2]
[351132746,1738347040365,-500.0,0.00017122,2]
[351132747,1738347040374,-963.26,0.00017122,2]
[351132748,1738347040383,-500.0,0.00017122,2]
[351132749,1738347040393,-575.74,0.00017122,2]
[351132750,1738347040402,-1096.07,0.00017122,2]
[351132751,1738347040411,-500.0,0.00017122,2]
[351132752,1738347040421,-500.0,0.00017122,2]
[351132753,1738347040431,-500.0,0.00017122,2]
[351132754,1738347040440,-1000.0,0.00017122,2]
[351132755,1738347040450,-500.0,0.00017122,2]
[351132756,1738347040460,-500.0,0.00017122,2]
[351132757,1738347040469,-700.6,0.00017122,2]
[351132758,1738347040478,-1377.4,0.00017122,2]
[351132759,1738347040488,-500.0,0.00017122,2]
[351132760,1738347040497,-1209.25,0.00017122,2]
[351132761,1738347040507,-500.0,0.00017122,2]
[351132762,1738347040516,-500.0,0.00017122,2]
[351132763,1738347040526,-500.0,0.00017122,2]
[351132764,1738347040535,-2037.39,0.00017122,2]
[351132765,1738347040545,-500.0,0.00017122,2]
[351132766,1738347040554,-500.0,0.00017122,2]
[351132767,1738347040564,-427.6865828,0.00017122,2]
[351132768,1738347040573,-500.0,0.00017122,2]
[351132769,1738347040582,-500.0,0.00017122,2]
[351132770,1738347040591,-841.63,0.00017122,2]
[351132771,1738347040601,-500.0,0.00017122,2]
[351132772,1738347040610,-500.0,0.00017122,2]
[351132773,1738347040619,-684.85,0.00017122,2]
[351132774,1738347040631,-500.0,0.00017122,2]
[351132775,1738347040641,-500.0,0.00017122,2]
[351132776,1738347040651,-500.0,0.00017122,2]
[351132777,1738347040660,-500.0,0.00017122,2]
[351132778,1738347040669,-500.0,0.00017122,2]
[351132779,1738347040679,-500.0,0.00017122,2]
[351132780,1738347040689,-918.63,0.00017122,2]
[351132781,1738347040698,-500.0,0.00017122,2]
[351132782,1738347040707,-500.0,0.00017123,2]
[351132783,1738347040717,-523.54417537,0.00017123,2]
[351132784,1738347040727,-500.0,0.00017123,2]
[351132785,1738347040736,-589.83480843,0.00017123,2]
[351132786,1738347040745,-500.0,0.00017123,2]
[351132787,1738347040755,-500.0,0.00017123,2]
[351132788,1738347040764,-500.0,0.00017123,2]
[351132789,1738347040774,-500.0,0.00017123,2]
[351132790,1738347040783,-500.0,0.00017123,2]
[351132791,1738347040793,-500.0,0.00017123,2]
[351132792,1738347040803,-500.0,0.00017123,2]
[351132793,1738347040812,-500.0,0.00017123,2]
[351132794,1738347040822,-192.95288614,0.00017123,2]
[351132795,1738347040831,-500.0,0.00017123,2]
[351132796,1738347040841,-500.0,0.00017123,2]
[351132797,1738347040851,-715.83,0.00017123,2]
[351132798,1738347040860,-387.51817309,0.00017123,2]
[351132799,1738347040870,-500.0,0.00017123,2]
[351132800,1738347040885,-614.38,0.00017123,2]
[351132801,1738347040894,-265.06908037,0.00017123,2]
[351132802,1738347040904,-500.0,0.00017123,2]
[351132803,1738347040913,-867.89,0.00017123,2]
[351132804,1738347040923,-651.18,0.00017123,2]
[351132805,1738347040933,-500.0,0.00017123,2]
[351132806,1738347040942,-500.0,0.00017123,2]
[351132807,1738347040952,-500.0,0.00017123,2]
[351132808,1738347040962,-500.0,0.00017123,2]
[351132809,1738347040972,-743.86,0.00017123,2]
[351132810,1738347040981,-500.0,0.00017123,2]
[351132811,1738347040991,-500.0,0.00017123,2]
[351132812,1738347041001,-500.0,0.00017123,2]
[351132813,1738347041010,-500.0,0.00017123,2]
[351132814,1738347041019,-500.0,0.00017139,2]
[351132815,1738347041028,-555.22,0.00017197,2]
[351132816,1738347041037,-705.66132175,0.00017245,2]
[351132817,1738347041047,-500.0,0.00017258,2]
[351132818,1738347041056,-500.0,0.00017258,2]
[351132819,1738347041066,-500.0,0.00017258,2]
[351132820,1738347041075,-500.0,0.00017258,2]
[351132821,1738347041084,-500.0,0.00017258,2]
[351132822,1738347041093,-500.0,0.00017258,2]
[351132823,1738347041104,-887.64,0.00017258,2]
[351132824,1738347041114,-845.53,0.00017258,2]
[351132825,1738347041126,-538.2,0.00017258,2]
[351132826,1738347041135,-525.73,0.00017258,2]
[351132827,1738347041146,-500.0,0.00017258,2]
[351132828,1738347041155,-500.0,0.00017258,2]
[351132829,1738347041165,-500.0,0.00017258,2]
[351132830,1738347041174,-500.0,0.00017258,2]
[351132831,1738347041184,-989.67,0.00017258,2]
[351132832,1738347041194,-500.0,0.00017258,2]
[351132833,1738347041204,-1554.57,0.00017258,2]
[351132834,1738347041214,-500.0,0.00017258,2]
[351132835,1738347041224,-500.0,0.00017258,2]
[351132836,1738347041234,-739.67,0.00017258,2]
[351132837,1738347041244,-500.0,0.00017258,2]
[351132838,1738347041253,-549.75064603,0.00017258,2]
[351132840,1738347041472,-637.70789413,0.00017258,2]
[351132841,1738347041483,-130.84145984,0.00017258,2]
[351132842,1738347041493,-500.0,0.00017258,2]
[351132843,1738347041503,-552.07,0.00017258,2]
[351132844,1738347041512,-500.0,0.00017258,2]
[351132845,1738347041521,-500.0,0.00017258,2]
[351132846,1738347041531,-1096.22,0.00017258,2]
[351132847,1738347041540,-963.37,0.00017258,2]
[351132848,1738347041549,-680.04,0.00017258,2]
[351132849,1738347041559,-151.06300718,0.00017258,2]
[351132850,1738347041573,-286.53590619,0.00017258,2]
[351132851,1738347041584,-96.16108663,0.00017258,2]
[351132852,1738347041594,-352.32821337,0.00017258,2]
[351132853,1738347041605,-341.9385928,0.00017258,2]
[351132854,1738347041624,-27.54319383,0.00017258,2]
[351132855,1738347041633,-295.79080383,0.00017258,2]
[351132856,1738347041644,-204.20919617,0.00017258,2]
[351132857,1738347041654,-500.0,0.00017258,2]
[351132858,1738347041663,-500.0,0.00017258,2]
[351132859,1738347041672,-500.0,0.00017258,2]
[351132860,1738347041682,-500.0,0.00017258,2]
[351132861,1738347041691,-2498.9,0.00017258,2]
[351132862,1738347041700,-500.0,0.00017258,2]
[351132863,1738347041754,-876.45,0.00017258,2]
[351132864,1738347041763,-500.0,0.00017258,2]
[351132865,1738347041773,-500.0,0.00017258,2]
[351132866,1738347041783,-500.0,0.00017258,2]
[351132867,1738347041792,-1312.29,0.00017258,2]
[351132868,1738347041801,-503.78036275,0.00017259,2]
[351132869,1738347041810,-500.0,0.00017259,2]
[351132870,1738347041819,-500.0,0.00017259,2]
[351132871,1738347041830,-500.0,0.00017259,2]
[351132872,1738347041839,-505.7753631,0.00017259,2]
[351132873,1738347041849,-500.0,0.00017259,2]
[351132874,1738347041859,-500.0,0.00017259,2]
[351132875,1738347041868,-500.0,0.00017259,2]
[351132876,1738347041878,-500.0,0.00017259,2]
[351132877,1738347041887,-315.36255697,0.00017259,2]
[351132878,1738347041896,-363.26732868,0.00017259,2]
[351132879,1738347041905,-500.0,0.00017259,2]
[351132880,1738347041916,-500.0,0.00017259,2]
[351132881,1738347041926,-500.0,0.00017259,2]
[351132882,1738347041935,-500.0,0.00017259,2]
[351132883,1738347041945,-500.0,0.00017259,2]
[351132884,1738347041954,-500.0,0.00017259,2]
[351132885,1738347041965,-500.0,0.00017259,2]
[351132886,1738347041974,-210.05248123,0.00017259,2]
[351132887,1738347041983,-500.0,0.00017259,2]
[351132888,1738347041993,-500.0,0.00017259,2]
[351132889,1738347042002,-160.92211398,0.00017259,2]
[351132890,1738347042011,-500.0,0.00017259,2]
[351132891,1738347042020,-500.0,0.00017259,2]
[351132892,1738347042029,-350.37520129,0.00017259,2]
[351132893,1738347042041,-149.62479871,0.00017259,2]
[351132894,1738347042050,-500.0,0.00017259,2]
[351132895,1738347042059,-500.0,0.00017259,2]
[351132896,1738347042068,-500.0,0.00017259,2]
[351132897,1738347042078,-500.0,0.00017259,2]
[351132898,1738347042087,-500.0,0.00017259,2]
[351132899,1738347042097,-500.0,0.00017259,2]
[351132900,1738347042110,-500.0,0.00017259,2]
[351132901,1738347042120,-470.76428267,0.00017259,2]
[351132902,1738347042151,-29.23571733,0.00017259,2]
[351132903,1738347042162,-500.0,0.00017259,2]
[351132904,1738347042172,-500.0,0.00017259,2]
[351132906,1738347042183,-500.0,0.00017259,2]
[351132908,1738347042193,-500.0,0.00017259,2]
[351132909,1738347042203,-500.0,0.00017259,2]
[351132910,1738347042211,-500.0,0.00017259,2]
[351132911,1738347042221,-512.55098827,0.00017259,2]
[351132912,1738347042229,-500.0,0.00017259,2]
[351132914,1738347042239,-500.0,0.00017259,2]
[351132915,1738347042249,-500.0,0.00017259,2]
[351132916,1738347042258,-500.0,0.00017259,2]
[351132917,1738347042267,-356.92240995,0.00017259,2]
[351132949,1738347042752,-231.53,0.00016975,2]
[351132950,1738347042762,-500.0,0.00016984,2]
[351132951,1738347042771,-305.34743949,0.00016985,2]
[351132952,1738347042783,-498.014838,0.00016985,2]
[351132953,1738347042799,-5465.46772251,0.00016985,2]
[351132954,1738347042809,-552.09891289,0.00016985,2]
[351132955,1738347042820,-34.26790839,0.00016985,2]
[351132956,1738347042829,-500.0,0.00017121,2]
[351132957,1738347042838,-6268.83,0.00017122,2]
[351132958,1738347042849,-143.07759005,0.00017259,2]
[351132959,1738347042858,-500.0,0.00017259,2]
[351132960,1738347042867,-500.0,0.00017259,2]
[351132961,1738347042877,-500.0,0.00017259,2]
[351132962,1738347042887,-500.0,0.00017259,2]
[351132963,1738347042896,-500.0,0.00017259,2]
[351132964,1738347042905,-500.0,0.00017259,2]
[351132965,1738347042915,-67.67502095,0.00017259,2]
[351132966,1738347043010,-432.32497905,0.00017259,2]
[351132967,1738347043021,-500.0,0.00017259,2]
[351132968,1738347043030,-503.18412047,0.00017259,2]
[351132969,1738347043039,-500.0,0.00017259,2]
[351132970,1738347043048,-500.0,0.00017259,2]
[351132971,1738347043057,-500.0,0.00017259,2]
[351132972,1738347043066,-500.0,0.00017259,2]
[351132973,1738347043076,-500.0,0.00017259,2]
[351132974,1738347043086,-500.0,0.00017259,2]
[351132975,1738347043098,-943.27,0.00017259,2]
[351132976,1738347043107,-500.0,0.00017259,2]
[351132977,1738347043116,-500.0,0.00017259,2]
[351132978,1738347043127,-713.29,0.00017259,2]
[351132979,1738347043137,-500.0,0.00017259,2]
[351132980,1738347043147,-500.0,0.00017259,2]
[351132981,1738347043156,-500.0,0.00017259,2]
[351132982,1738347043166,-500.0,0.00017259,2]
[351132983,1738347043175,-500.0,0.00017259,2]
[351132984,1738347043185,-500.0,0.00017259,2]
[351132985,1738347043194,-500.0,0.00017259,2]
[351132986,1738347043205,-173.61782613,0.00017259,2]
[351132987,1738347043214,-557.95,0.00017259,2]
[351132988,1738347043224,-500.0,0.00017259,2]
[351132989,1738347043233,-357.36776924,0.00017259,2]
[351132990,1738347043243,-500.0,0.00017259,2]
[351132991,1738347043253,-500.0,0.00017259,2]
[351132992,1738347043262,-500.0,0.00017259,2]
[351132993,1738347043271,-500.0,0.00017259,2]
[351132994,1738347043281,-500.0,0.00017259,2]
[351132995,1738347043290,-153.597844,0.00017259,2]
[351132996,1738347043300,-1213.83,0.00017259,2]
[351132997,1738347043310,-500.0,0.00017259,2]
[351132998,1738347043319,-500.0,0.00017259,2]
[351132999,1738347043328,-1121.05,0.00017259,2]
[351133000,1738347043338,-152.283895,0.00017259,2]
[351133001,1738347043347,-500.0,0.00017259,2]
[351133002,1738347043358,-1093.93,0.00017259,2]
[351133003,1738347043367,-500.0,0.00017259,2]
[351133004,1738347043378,-559.09,0.00017259,2]
[351133005,1738347043387,-500.0,0.00017259,2]
[351133006,1738347043396,-500.0,0.00017259,2]
[351133007,1738347043406,-528.45,0.00017259,2]
[351133008,1738347043420,-500.0,0.00017259,2]
[351133009,1738347043429,-583.43,0.00017259,2]
[351133010,1738347043439,-500.0,0.00017259,2]
[351133011,1738347043448,-500.0,0.00017259,2]
[351133012,1738347043457,-500.0,0.00017259,2]
[351133013,1738347043467,-500.0,0.00017259,2]
[351133014,1738347043477,-500.0,0.00017259,2]
[351133015,1738347043490,-500.0,0.00017259,2]
[351133016,1738347043499,-500.0,0.00017259,2]
[351133017,1738347043510,-500.0,0.00017259,2]
[351133018,1738347043519,-500.0,0.00017259,2]
[351133019,1738347043529,-500.0,0.00017259,2]
[351133020,1738347043538,-500.0,0.00017259,2]
[351133021,1738347043547,-704.25,0.00017259,2]
[351133022,1738347043556,-637.67,0.00017259,2]
[351133023,1738347043566,-500.0,0.00017259,2]
[351133024,1738347043575,-963.26,0.00017259,2]
[351133025,1738347043585,-500.0,0.00017259,2]
[351133026,1738347043594,-575.74,0.00017259,2]
[351133027,1738347043603,-1096.07,0.00017259,2]
[351133028,1738347043613,-500.0,0.00017259,2]
[351133029,1738347043622,-500.0,0.00017259,2]
[351133030,1738347043631,-500.0,0.00017259,2]
[351133031,1738347043640,-1000.0,0.00017259,2]
[351133032,1738347043650,-500.0,0.00017259,2]
[351133033,1738347043659,-500.0,0.00017259,2]
[351133034,1738347043669,-700.6,0.00017259,2]
[351133035,1738347043678,-1377.4,0.00017259,2]
[351133036,1738347043687,-500.0,0.00017259,2]
[351133037,1738347043696,-1209.25,0.00017259,2]
[351133038,1738347043706,-500.0,0.00017259,2]
[351133039,1738347043716,-500.0,0.00017259,2]
[351133040,1738347043725,-500.0,0.00017259,2]
[351133041,1738347043734,-2037.39,0.00017259,2]
[351133042,1738347043743,-500.0,0.00017259,2]
[351133043,1738347043752,-500.0,0.00017259,2]
[351133044,1738347043761,-500.0,0.00017259,2]
[351133045,1738347043771,-500.0,0.00017259,2]
[351133046,1738347043780,-841.63,0.00017259,2]
[351133047,1738347043789,-500.0,0.00017259,2]
[351133048,1738347043798,-500.0,0.00017259,2]
[351133049,1738347043807,-684.85,0.00017259,2]
[351133050,1738347043816,-500.0,0.00017259,2]
[351133051,1738347043825,-500.0,0.00017259,2]
[351133052,1738347043835,-500.0,0.00017259,2]
[351133053,1738347043844,-500.0,0.00017259,2]
[351133054,1738347043853,-132.71499481,0.00017259,2]
[351133055,1738347043866,-367.28500519,0.00017259,2]
[351133056,1738347043876,-500.0,0.00017259,2]
[351133057,1738347043885,-918.63,0.00017259,2]
[351133058,1738347043894,-500.0,0.00017259,2]
[351133059,1738347043904,-6268.83,0.00017259,2]
[351133060,1738347043913,-258.22076859,0.0001726,2]
[351133061,1738347043922,-500.0,0.0001726,2]
[351133062,1738347043931,-500.0,0.0001726,2]
[351133063,1738347043941,-500.0,0.0001726,2]
[351133064,1738347043950,-500.0,0.0001726,2]
[351133065,1738347043960,-500.0,0.0001726,2]
[351133066,1738347043970,-500.0,0.0001726,2]
[351133067,1738347043979,-500.0,0.0001726,2]
[351133068,1738347043988,-500.0,0.0001726,2]
[351133069,1738347043997,-500.0,0.0001726,2]
[351133070,1738347044006,-500.0,0.0001726,2]
[351133071,1738347044016,-715.83,0.0001726,2]
[351133072,1738347044025,-500.0,0.0001726,2]
[351133073,1738347044035,-614.38,0.0001726,2]
[351133074,1738347044044,-500.0,0.0001726,2]
[351133075,1738347044053,-867.89,0.0001726,2]
[351133076,1738347044062,-651.18,0.0001726,2]
[351133077,1738347044072,-500.0,0.0001726,2]
[351133078,1738347044081,-500.0,0.0001726,2]
[351133079,1738347044090,-500.0,0.0001726,2]
[351133080,1738347044100,-743.86,0.0001726,2]
[351133081,1738347044113,-500.0,0.0001726,2]
[351133082,1738347044123,-500.0,0.0001726,2]
[351133083,1738347044132,-500.0,0.0001726,2]
[351133084,1738347044143,-500.0,0.0001726,2]
[351133085,1738347044152,-500.0,0.00017395,2]
[351133086,1738347044161,-500.0,0.00017395,2]
[351133087,1738347044171,-500.0,0.00017395,2]
[351133088,1738347044181,-500.0,0.00017395,2]
[351133089,1738347044192,-500.0,0.00017395,2]
[351133090,1738347044201,-500.0,0.00017395,2]
[351133091,1738347044211,-887.64,0.00017395,2]
[351133092,1738347044220,-845.53,0.00017395,2]
[351133093,1738347044232,-538.2,0.00017395,2]
[351133094,1738347044241,-525.73,0.00017395,2]
[351133095,1738347044251,-500.0,0.00017395,2]
[351133096,1738347044260,-500.0,0.00017395,2]
[351133097,1738347044270,-321.65043212,0.00017395,2]
[351133098,1738347044280,-989.67,0.00017395,2]
[351133099,1738347044289,-500.0,0.00017395,2]
[351133100,1738347044298,-1554.57,0.00017395,2]
[351133101,1738347044307,-500.0,0.00017395,2]
[351133102,1738347044316,-739.67,0.00017395,2]
[351133103,1738347044325,-500.0,0.00017395,2]
[351133104,1738347044335,-1318.3,0.00017395,2]
[351133105,1738347044344,-500.0,0.00017395,2]
[351133106,1738347044353,-552.07,0.00017395,2]
[351133107,1738347044362,-500.0,0.00017395,2]
[351133108,1738347044371,-500.0,0.00017395,2]
[351133109,1738347044381,-1096.22,0.00017395,2]
[351133110,1738347044391,-963.37,0.00017395,2]
[351133111,1738347044401,-680.04,0.00017395,2]
[351133112,1738347044411,-533.76,0.00017395,2]
[351133113,1738347044420,-721.81,0.00017395,2]
[351133114,1738347044429,-353.08194434,0.00017395,2]
[351133115,1738347044439,-500.0,0.00017395,2]
[351133116,1738347044448,-500.0,0.00017395,2]
[351133117,1738347044458,-500.0,0.00017395,2]
[351133118,1738347044467,-500.0,0.00017395,2]
[351133119,1738347044476,-2498.9,0.00017395,2]
[351133120,1738347044485,-500.0,0.00017395,2]
[351133121,1738347044495,-876.45,0.00017395,2]
[351133122,1738347044504,-500.0,0.00017395,2]
[351133123,1738347044514,-500.0,0.00017395,2]
[351133124,1738347044523,-500.0,0.00017395,2]
[351133125,1738347044532,-500.0,0.00017395,2]
[351133126,1738347044541,-1312.29,0.00017395,2]
[351133127,1738347044551,-500.0,0.00017396,2]
[351133128,1738347044560,-500.0,0.00017396,2]
[351133129,1738347044569,-500.0,0.00017396,2]
[351133130,1738347044580,-500.0,0.00017396,2]
[351133131,1738347044589,-500.0,0.00017396,2]
[351133132,1738347044599,-500.0,0.00017396,2]
[351133133,1738347044609,-500.0,0.00017396,2]
[351133134,1738347044618,-500.0,0.00017396,2]
[351133135,1738347044628,-500.0,0.00017396,2]
[351133136,1738347044638,-500.0,0.00017396,2]
[351133137,1738347044648,-500.0,0.00017396,2]
[351133138,1738347044659,-500.0,0.00017396,2]
[351133139,1738347044669,-500.0,0.00017396,2]
[351133140,1738347044679,-500.0,0.00017396,2]
[351133141,1738347044689,-500.0,0.00017396,2]
[351133142,1738347044699,-500.0,0.00017396,2]
[351133143,1738347044710,-500.0,0.00017396,2]
[351133144,1738347044720,-500.0,0.00017396,2]
[351133145,1738347044730,-500.0,0.00017396,2]
[351133146,1738347044740,-500.0,0.00017396,2]
[351133147,1738347044750,-500.0,0.00017396,2]
[351133148,1738347044759,-500.0,0.00017396,2]
[351133149,1738347044770,-500.0,0.00017396,2]
[351133150,1738347044779,-500.0,0.00017396,2]